bitfinex/quotes_BTCUSD_20250614
["timestamp","ask_amount","ask_price","bid_price","bid_amount"]
[1749936085317,1.23695029,105220.0,105210.0,0.2132]
[1749936086039,1.22802935,105220.0,105210.0,0.2132]
[1749936086250,1.23695014,105220.0,105210.0,0.2291]
[1749936086480,1.23690707,105220.0,105210.0,0.2291]
[1749936086907,1.2369071,105220.0,105210.0,0.2291]
[1749936087360,1.21909401,105220.0,105210.0,0.2291]
[1749936087611,1.2369071,105220.0,105210.0,0.2291]
[1749936087840,1.21909401,105220.0,105210.0,0.2291]
[1749936088065,1.2369071,105220.0,105210.0,0.2291]
[1749936088289,0.6171874,105220.0,105210.0,0.2291]
[1749936088549,1.22800054,105220.0,105210.0,0.2291]
[1749936088779,1.219094,105220.0,105210.0,0.2291]
[1749936088998,1.22800055,105220.0,105210.0,0.2291]
[1749936089218,1.23690709,105220.0,105210.0,0.2291]
[1749936089430,1.22800055,105220.0,105210.0,0.2291]
[1749936090274,1.21909401,105220.0,105210.0,0.2291]
[1749936090481,1.23690709,105220.0,105210.0,0.2291]
[1749936090927,1.22800055,105220.0,105210.0,0.2291]
[1749936091134,1.23690709,105220.0,105210.0,0.2291]
[1749936091344,1.21909401,105220.0,105210.0,0.2291]
[1749936091559,1.22800055,105220.0,105210.0,0.2291]
[1749936091767,1.21909401,105220.0,105210.0,0.2291]
[1749936092189,1.23690709,105220.0,105210.0,0.2291]
[1749936092392,1.23692151,105220.0,105210.0,0.2291]
[1749936092607,1.23695036,105220.0,105210.0,0.22906]
[1749936092806,1.23695035,105220.0,105210.0,0.22906]
[1749936093019,1.21018747,105220.0,105210.0,0.22906]
[1749936093226,1.21910843,105220.0,105210.0,0.22906]
[1749936093471,1.23695035,105220.0,105210.0,0.22906]
[1749936093650,1.22802939,105220.0,105210.0,0.22906]
[1749936093870,0.4337462,105220.0,105210.0,0.4381653]
[1749936094080,1.01779649,105220.0,105210.0,0.4381653]
[1749936094309,1.0445592,105220.0,105210.0,0.4381653]
[1749936094739,1.04455925,105220.0,105210.0,0.4381653]
[1749936095161,1.02671741,105220.0,105210.0,0.4381653]
[1749936095386,1.02671741,105220.0,105210.0,0.45717389]
[1749936095387,0.2362662,105220.0,105210.0,0.45717389]
[1749936095602,1.03832251,105220.0,105210.0,0.45717407]
[1749936095811,1.02940159,105220.0,105210.0,0.45717407]
[1749936096003,1.05616432,105220.0,105210.0,0.45717407]
[1749936096264,1.04724337,105220.0,105210.0,0.45717407]
[1749936096494,1.05616426,105220.0,105210.0,0.45717407]
[1749936096706,1.06566788,105220.0,105210.0,0.45717407]
[1749936096910,0.88055813,105220.0,105210.0,0.46667823]
[1749936097112,1.07121968,105220.0,105210.0,0.45717407]
[1749936097363,1.05337791,105220.0,105210.0,0.45717407]
[1749936097574,1.0622988,105220.0,105210.0,0.45717407]
[1749936097777,1.07121969,105220.0,105210.0,0.46667832]
[1749936097961,1.07063714,105220.0,105210.0,0.46667832]
[1749936098162,1.07063715,105220.0,105210.0,0.46667832]
[1749936098371,1.06171626,105220.0,105210.0,0.46667832]
[1749936098595,1.05279537,105220.0,105210.0,0.46667832]
[1749936098853,1.06171627,105220.0,105210.0,0.46667832]
[1749936099080,1.07063717,105220.0,105210.0,0.46667832]
[1749936099328,1.05279537,105220.0,105210.0,0.46667832]
[1749936099576,1.07063717,105220.0,105210.0,0.46667832]
[1749936099810,1.05279537,105220.0,105210.0,0.46667832]
[1749936100065,1.06171627,105220.0,105210.0,0.46667832]
[1749936100307,1.07063717,105220.0,105210.0,0.46667832]
[1749936100547,1.07063717,105220.0,105210.0,0.45717353]
[1749936100790,1.05279537,105220.0,105210.0,0.45717353]
[1749936101046,1.06171627,105220.0,105210.0,0.45717353]
[1749936101256,1.07063717,105220.0,105210.0,0.44766928]
[1749936101661,1.07063716,105220.0,105210.0,0.44766928]
[1749936101871,1.07063715,105220.0,105210.0,0.44766928]
[1749936102125,1.06171627,105220.0,105210.0,0.44766928]
[1749936102787,1.05279537,105220.0,105210.0,0.44766928]
[1749936103214,0.2602422,105220.0,105210.0,0.55332275]
[1749936103432,0.87163834,105220.0,105210.0,0.62894069]
[1749936103716,0.88948005,105220.0,105210.0,0.62894069]
[1749936103930,0.88948005,105220.0,105210.0,0.44766928]
[1749936103931,1.07955808,105220.0,105210.0,0.44766928]
[1749936104176,1.07063718,105220.0,105210.0,0.44766928]
[1749936104393,1.07955808,105220.0,105210.0,0.44766928]
[1749936104812,1.07063718,105220.0,105210.0,0.44766928]
[1749936105037,1.07955808,105220.0,105210.0,0.44766928]
[1749936105251,1.06171627,105220.0,105210.0,0.44766928]
[1749936105695,1.07955808,105220.0,105210.0,0.44766928]
[1749936105912,1.07955675,105220.0,105210.0,0.44766928]
[1749936106348,1.07063628,105220.0,105210.0,0.45717353]
[1749936106571,1.07955673,105220.0,105210.0,0.45717353]
[1749936106805,1.07063628,105220.0,105210.0,0.45717353]
[1749936107230,1.06171582,105220.0,105210.0,0.45717353]
[1749936107452,0.45090266,105220.0,105210.0,0.45717353]
[1749936107691,1.07955672,105220.0,105210.0,0.45717353]
[1749936107816,1.07955671,105220.0,105210.0,0.45717353]
[1749936108067,1.07063624,105220.0,105210.0,0.45717353]
[1749936108260,1.05279537,105220.0,105210.0,0.45717353]
[1749936108489,1.07955668,105220.0,105210.0,0.45717353]
[1749936108700,0.87997485,105220.0,105210.0,0.46667769]
[1749936108912,0.87163785,105220.0,105210.0,0.46667769]
[1749936109120,0.88055828,105220.0,105210.0,0.46667769]
[1749936109329,0.87163786,105220.0,105210.0,0.46667769]
[1749936109540,0.88947875,105220.0,105210.0,0.46667769]
[1749936109743,0.87163788,105220.0,105210.0,0.46667769]
[1749936109948,0.88947876,105220.0,105210.0,0.46667769]
[1749936110363,0.88947877,105220.0,105210.0,0.46667769]
[1749936110925,0.88055833,105220.0,105210.0,0.46667769]
[1749936111144,1.05279537,105220.0,105210.0,0.45717353]
[1749936111387,1.07955671,105220.0,105210.0,0.45717353]
[1749936111601,1.05279537,105220.0,105210.0,0.45717353]
[1749936112035,1.07955673,105220.0,105210.0,0.45717353]
[1749936112238,1.06171582,105220.0,105210.0,0.45717353]
[1749936112468,1.07955673,105220.0,105210.0,0.45717353]
[1749936112662,1.06171582,105220.0,105210.0,0.45717353]
[1749936113128,1.05279537,105220.0,105210.0,0.45717353]
[1749936113478,1.07955673,105220.0,105210.0,0.45717353]
[1749936113687,1.07063628,105220.0,105210.0,0.45717353]
[1749936113903,1.07955673,105220.0,105210.0,0.45717353]
[1749936114106,1.07063628,105220.0,105210.0,0.45717353]
[1749936114315,1.06171582,105220.0,105210.0,0.45717353]
[1749936114527,1.07955673,105220.0,105210.0,0.45717353]
[1749936115265,1.06171582,105220.0,105210.0,0.45717353]
[1749936115514,1.07955675,105220.0,105210.0,0.45717353]
[1749936116158,1.06171627,105220.0,105210.0,0.45717353]
[1749936116421,1.07955808,105220.0,105210.0,0.41677353]
[1749936116632,1.07063718,105220.0,105210.0,0.41677353]
[1749936116848,1.06171627,105220.0,105210.0,0.41677353]
[1749936117095,1.07955808,105220.0,105210.0,0.41677353]
[1749936117308,1.07063718,105220.0,105210.0,0.41677353]
[1749936117531,1.06171627,105220.0,105210.0,0.41677353]
[1749936117742,1.07955808,105220.0,105210.0,0.41677353]
[1749936117952,1.07063718,105220.0,105210.0,0.41677353]
[1749936118157,1.07955808,105220.0,105210.0,0.41677353]
[1749936118609,0.46874492,105220.0,105210.0,0.26121353]
[1749936118868,1.07955808,105220.0,105210.0,0.41673353]
[1749936120005,1.06171627,105220.0,105210.0,0.41673353]
[1749936120236,1.07063718,105220.0,105210.0,0.41673353]
[1749936120421,1.06171627,105220.0,105210.0,0.41673353]
[1749936120628,1.07063718,105220.0,105210.0,0.41673353]
[1749936120864,1.07955808,105220.0,105210.0,0.41673353]
[1749936121281,1.07063718,105220.0,105210.0,0.41673353]
[1749936121491,1.05279537,105220.0,105210.0,0.41673353]
[1749936121704,1.07955808,105220.0,105210.0,0.41673353]
[1749936122109,1.05279537,105220.0,105210.0,0.41673353]
[1749936122523,1.06171627,105220.0,105210.0,0.41673353]
[1749936122740,0.45090311,105220.0,105210.0,0.41673353]
[1749936122951,1.07955808,105220.0,105210.0,0.41673353]
[1749936123162,0.46874492,105220.0,105210.0,0.41673353]
[1749936123383,1.07063718,105220.0,105210.0,0.41673353]
[1749936123593,1.07955808,105220.0,105210.0,0.41673353]
[1749936124033,1.0795581,105220.0,105210.0,0.41673353]
[1749936124245,1.05279537,105220.0,105210.0,0.41673353]
[1749936124445,1.0795581,105220.0,105210.0,0.41673353]
[1749936124597,0.45982403,105220.0,105210.0,0.41673353]
[1749936124804,1.0795581,105220.0,105210.0,0.41673353]
[1749936125218,1.0795581,105220.0,105210.0,0.40722928]
[1749936125417,1.06055077,105220.0,105210.0,0.1981247]
[1749936125633,1.06055077,105220.0,105210.0,0.39772521]
[1749936125807,0.44973756,105220.0,105210.0,0.39772521]
[1749936126021,1.03378804,105220.0,105210.0,0.39772521]
[1749936126225,1.05162984,105220.0,105210.0,0.39772521]
[1749936126458,1.06055074,105220.0,105210.0,0.39772521]
[1749936126664,1.04270894,105220.0,105210.0,0.39772521]
[1749936126873,1.05162984,105220.0,105210.0,0.39772521]
[1749936127096,1.06055074,105220.0,105210.0,0.39772521]
[1749936127512,1.04270894,105220.0,105210.0,0.39772521]
[1749936127709,1.03378804,105220.0,105210.0,0.39772521]
[1749936127906,1.06055047,105220.0,105210.0,0.39772521]
[1749936128159,1.03378804,105220.0,105210.0,0.39772521]
[1749936128359,1.04270885,105220.0,105210.0,0.39772521]
[1749936128754,1.04212586,105220.0,105210.0,0.39772521]
[1749936129005,1.03320505,105220.0,105210.0,0.39772521]
[1749936129676,1.05104667,105220.0,105210.0,0.39772521]
[1749936130096,1.03320505,105220.0,105210.0,0.39772521]
[1749936130361,1.05104667,105220.0,105210.0,0.39772521]
[1749936130783,1.05104667,105220.0,105210.0,0.40722964]
[1749936131015,1.03320505,105220.0,105210.0,0.41673398]
[1749936131239,1.05104667,105220.0,105210.0,0.41673398]
[1749936131453,1.02428424,105220.0,105210.0,0.41673398]
[1749936131673,1.05104667,105220.0,105210.0,0.45709398]
[1749936131880,1.02428424,105220.0,105210.0,0.45709398]
[1749936132094,1.04212586,105220.0,105210.0,0.45709398]
[1749936132543,1.03320505,105220.0,105210.0,0.45709398]
[1749936132755,1.02428424,105220.0,105210.0,0.45709398]
[1749936133000,1.05104664,105220.0,105210.0,0.45709398]
[1749936133416,1.05104667,105220.0,105210.0,0.45709398]
[1749936133838,1.04212586,105220.0,105210.0,0.45709398]
[1749936133986,1.03320505,105220.0,105210.0,0.45709398]
[1749936134187,1.02428424,105220.0,105210.0,0.45709398]
[1749936134392,1.03320505,105220.0,105210.0,0.45709398]
[1749936134774,1.05104667,105220.0,105210.0,0.45709398]
[1749936135000,1.0510467,105220.0,105210.0,0.45709398]
[1749936135417,1.02428424,105220.0,105210.0,0.45709398]
[1749936135624,1.05104671,105220.0,105210.0,0.45709398]
[1749936135834,1.05104698,105220.0,105210.0,0.45709398]
[1749936136966,1.03320515,105220.0,105210.0,0.45709398]
[1749936137128,0.2596587,105220.0,105210.0,0.45709398]
[1749936137333,1.04329094,105220.0,105210.0,0.45709398]
[1749936137546,0.45924051,105220.0,105210.0,0.45709398]
[1749936137778,0.45982296,105220.0,105210.0,0.45709398]
[1749936138022,1.05279429,105220.0,105210.0,0.45709398]
[1749936138234,1.07955701,105220.0,105210.0,0.45709398]
[1749936138435,1.05221211,105220.0,105210.0,0.45709398]
[1749936138638,1.07005394,105220.0,105210.0,0.44758964]
[1749936138844,1.07005393,105220.0,105210.0,0.44758964]
[1749936139049,1.04329121,105220.0,105210.0,0.44758964]
[1749936139256,1.07005394,105220.0,105210.0,0.44758964]
[1749936139463,1.06113303,105220.0,105210.0,0.44758964]
[1749936139666,1.07005394,105220.0,105210.0,0.44758964]
[1749936140042,1.06113303,105220.0,105210.0,0.44758964]
[1749936140218,1.04329121,105220.0,105210.0,0.44758964]
[1749936140831,0.25132103,105220.0,105210.0,0.44758964]
[1749936141037,0.88947963,105220.0,105210.0,0.4570938]
[1749936141241,0.89898352,105220.0,105210.0,0.4570938]
[1749936141449,0.89898344,105220.0,105210.0,0.4570938]
[1749936141607,0.87222079,105220.0,105210.0,0.4570938]
[1749936141866,0.88114168,105220.0,105210.0,0.4560938]
[1749936142074,0.28817033,105220.0,105210.0,0.4580938]
[1749936142280,0.66271546,105220.0,105210.0,0.4580938]
[1749936142489,0.6716359,105220.0,105210.0,0.4570938]
[1749936142714,0.07866353,105220.0,105210.0,0.4600938]
[1749936142932,0.06082265,105220.0,105210.0,0.4600938]
[1749936143124,0.04239877,105220.0,105210.0,0.4600938]
[1749936143341,0.05190221,105220.0,105210.0,0.4600938]
[1749936143553,0.04181598,105220.0,105210.0,0.4600938]
[1749936143761,0.05131933,105220.0,105210.0,0.4600938]
[1749936143978,0.02280973,105220.0,105210.0,0.53571174]
[1749936144205,0.02280973,105220.0,105210.0,1.1465249]
[1749936144440,0.0228095,105220.0,105210.0,1.1465249]
[1749936144716,0.0228095,105220.0,105210.0,0.53571174]
[1749936145001,0.0228095,105220.0,105210.0,1.1465249]
[1749936145002,0.02280924,105220.0,105210.0,1.1465249]
[1749936145227,0.02280918,105220.0,105210.0,1.1465249]
[1749936145445,0.01388926,105220.0,105210.0,1.1465249]
[1749936145883,0.02280928,105220.0,105210.0,1.1465249]
[1749936146330,0.01388926,105220.0,105210.0,1.1465249]
[1749936146569,0.02280928,105220.0,105210.0,1.1465249]
[1749936147237,0.02280928,105220.0,105210.0,1.33891588]
[1749936147456,0.01388926,105220.0,105210.0,1.33891588]
[1749936147907,0.02280923,105220.0,105210.0,1.33891588]
[1749936148119,0.01388926,105220.0,105210.0,0.72810272]
[1749936148361,0.02280928,105220.0,105210.0,0.6319535]
[1749936148594,0.02280929,105220.0,105210.0,0.6319535]
[1749936148813,0.01388926,105220.0,105210.0,0.6319535]
[1749936149030,0.02280921,105220.0,105210.0,0.6319535]
[1749936149241,0.02280928,105220.0,105210.0,0.6319535]
[1749936149917,0.01388926,105220.0,105210.0,0.6319535]
[1749936150130,0.02280928,105220.0,105210.0,0.6319535]
[1749936150336,0.01388926,105220.0,105210.0,0.6319535]
[1749936150560,0.02280929,105220.0,105210.0,0.6319535]
[1749936150781,0.01388926,105220.0,105210.0,0.6319535]
[1749936151229,0.02280929,105220.0,105210.0,0.6319535]
[1749936151869,0.01388926,105220.0,105210.0,0.6319535]
[1749936154413,0.61081316,105230.0,105220.0,0.21858834]
[1749936154650,0.61086069,105230.0,105220.0,0.25038834]
[1749936155312,0.61086069,105230.0,105220.0,0.29074834]
[1749936155520,0.62986595,105230.0,105220.0,0.3002516]
[1749936155721,0.66790464,105230.0,105220.0,0.3012516]
[1749936155862,0.66790464,105230.0,105220.0,0.3022516]
[1749936156479,0.68690963,105230.0,105220.0,0.3022516]
[1749936157678,0.69641226,105230.0,105220.0,0.3022516]
[1749936161478,0.67740673,105230.0,105220.0,0.3022516]
[1749936161732,0.03808622,105230.0,105220.0,0.3022516]
[1749936161928,0.66790419,105230.0,105220.0,0.3022516]
[1749936162144,0.6679041,105230.0,105220.0,0.3022516]
[1749936164909,0.66790401,105230.0,105220.0,0.3022516]
[1749936165096,0.04758849,105230.0,105220.0,0.3022516]
[1749936165341,0.65840165,105230.0,105220.0,0.3022516]
[1749936166015,0.64889938,105230.0,105220.0,0.3022516]
[1749936166233,0.65840165,105230.0,105220.0,0.3022516]
[1749936166638,0.68516063,105230.0,105220.0,0.3022516]
[1749936166850,0.65840165,105230.0,105220.0,0.3022516]
[1749936167268,0.68516063,105230.0,105220.0,0.3022516]
[1749936167921,0.0743475,105230.0,105220.0,0.3022516]
[1749936168145,0.6762409,105230.0,105220.0,0.3022516]
[1749936168872,0.65840156,105230.0,105220.0,0.3022516]
[1749936169111,0.67682356,105230.0,105220.0,0.3022516]
[1749936169825,0.69466299,105230.0,105220.0,0.3022516]
[1749936170063,0.68516063,105230.0,105220.0,0.3022516]
[1749936170296,0.69466299,105230.0,105220.0,0.3022516]
[1749936170527,0.66732125,105230.0,105220.0,0.3022516]
[1749936171235,0.64889938,105230.0,105220.0,0.3022516]
[1749936171519,0.67565844,105230.0,105220.0,0.3022516]
[1749936171766,0.66732137,105230.0,105220.0,0.3022516]
[1749936172004,0.06484533,105230.0,105220.0,0.3022516]
[1749936172244,0.65840165,105230.0,105220.0,0.3022516]
[1749936172486,0.64889938,105230.0,105220.0,0.3022516]
[1749936172686,0.68516064,105230.0,105220.0,0.3022516]
[1749936172903,0.66673873,105230.0,105220.0,0.3022516]
[1749936173139,0.6851607,105230.0,105220.0,0.3022516]
[1749936173333,0.68516066,105230.0,105220.0,0.3022516]
[1749936173549,0.68516063,105230.0,105220.0,0.3022516]
[1749936173747,0.06484533,105230.0,105220.0,1.00930652]
[1749936173996,0.04700591,105230.0,105220.0,1.00930652]
[1749936174215,0.0470058,105230.0,105220.0,0.39849336]
[1749936174646,0.04700585,105230.0,105220.0,0.39849336]
[1749936174840,0.04700563,105230.0,105220.0,0.39849336]
[1749936175091,0.03808622,105230.0,105220.0,0.39849336]
[1749936175315,0.04700562,105230.0,105220.0,0.39849336]
[1749936175506,0.04700547,105230.0,105220.0,1.10545574]
[1749936175759,0.03808622,105230.0,105220.0,1.10545574]
[1749936175981,0.00496795,105240.0,105230.0,0.25086775]
[1749936176214,0.05,105270.0,105260.0,0.06079976]
[1749936176458,0.05,105270.0,105260.0,1.183016]
[1749936176694,0.05009033,105270.0,105260.0,0.54284722]
[1749936177388,0.05009033,105270.0,105260.0,1.15366038]
[1749936178064,0.08295075,105270.0,105260.0,1.18131146]
[1749936178250,0.08295075,105270.0,105260.0,0.5704983]
[1749936178496,0.08295075,105270.0,105260.0,1.26587706]
[1749936178714,0.05009033,105270.0,105260.0,1.26587706]
[1749936179800,0.05009033,105270.0,105260.0,1.66541791]
[1749936180041,0.03349033,105270.0,105260.0,2.30458201]
[1749936180318,0.03349033,105270.0,105260.0,2.31358201]
[1749936180527,0.03349033,105270.0,105260.0,2.31350201]
[1749936181396,0.02551023,105310.0,105300.0,0.02848893]
[1749936181622,0.20570276,105350.0,105340.0,0.2183395]
[1749936181623,0.00570276,105350.0,105340.0,0.2183395]
[1749936181843,0.01066711,105350.0,105340.0,1.01164883]
[1749936182067,0.00570276,105350.0,105340.0,0.27417211]
[1749936182298,0.00570276,105350.0,105340.0,1.01160883]
[1749936182299,0.0061782,105350.0,105340.0,1.01160883]
[1749936182525,0.0061782,105350.0,105340.0,0.47001211]
[1749936182750,0.0061782,105350.0,105340.0,1.44785059]
[1749936182976,0.0061782,105350.0,105340.0,1.47024138]
[1749936183196,0.0061782,105350.0,105340.0,1.47724138]
[1749936183428,0.0061782,105350.0,105340.0,0.75434551]
[1749936183647,0.0061782,105350.0,105340.0,1.47772138]
[1749936183874,0.0061782,105350.0,105340.0,1.46033059]
[1749936184324,0.0061782,105350.0,105340.0,1.47487144]
[1749936184546,0.0061782,105350.0,105340.0,1.50705274]
[1749936184772,0.0061782,105350.0,105340.0,1.47487144]
[1749936185655,0.0061782,105350.0,105340.0,0.73695472]
[1749936185864,0.0061782,105350.0,105340.0,1.47487144]
[1749936186311,0.0061782,105350.0,105340.0,1.27855144]
[1749936186528,0.0061782,105350.0,105340.0,1.47483144]
[1749936186869,0.0061782,105350.0,105340.0,0.68218126]
[1749936186871,0.0061782,105350.0,105340.0,0.32658126]
[1749936187094,0.56675861,105350.0,105340.0,0.012]
[1749936187308,0.90028459,105350.0,105340.0,0.012]
[1749936187538,0.03798146,105310.0,105300.0,0.23965207]
[1749936187762,0.0094973,105290.0,105280.0,0.18990596]
[1749936187984,0.57008772,105290.0,105280.0,0.22789814]
[1749936188198,0.76953658,105290.0,105280.0,0.20890255]
[1749936188422,0.01899604,105280.0,105270.0,0.20890668]
[1749936188614,0.03799199,105280.0,105270.0,0.36606677]
[1749936188822,0.01899741,105270.0,105260.0,0.20887949]
[1749936189032,0.56059413,105270.0,105260.0,0.2183795]
[1749936189239,0.01899741,105270.0,105260.0,0.38523978]
[1749936189651,0.02849634,105270.0,105260.0,0.38523978]
[1749936189858,0.01899741,105270.0,105260.0,0.38519978]
[1749936190063,0.02849643,105270.0,105260.0,0.38535978]
[1749936190707,0.02849643,105270.0,105260.0,0.38935978]
[1749936190914,0.04749492,105270.0,105260.0,0.39135978]
[1749936191115,1.14548011,105270.0,105260.0,0.006]
[1749936191338,1.16319779,105270.0,105260.0,0.006]
[1749936191689,1.16002096,105270.0,105260.0,0.006]
[1749936191893,0.44924665,105260.0,105250.0,0.15748]
[1749936192105,0.01900281,105240.0,105230.0,0.01900589]
[1749936192351,0.01900281,105240.0,105220.0,0.001]
[1749936192352,0.19956285,105230.0,105220.0,0.001]
[1749936192560,0.70780468,105230.0,105220.0,0.00109033]
[1749936192767,0.70780468,105230.0,105220.0,0.15885033]
[1749936192768,0.72300468,105230.0,105220.0,0.15885033]
[1749936193187,1.03924644,105230.0,105220.0,0.15893033]
[1749936193830,1.05697211,105230.0,105220.0,0.00109033]
[1749936194034,1.13606126,105230.0,105220.0,0.15901033]
[1749936194244,1.13906126,105230.0,105220.0,0.00109033]
[1749936194455,1.156787,105230.0,105220.0,0.00109033]
[1749936194677,1.13906126,105230.0,105220.0,0.00109033]
[1749936194872,1.15516126,105230.0,105220.0,0.00109033]
[1749936195079,1.17288777,105230.0,105220.0,0.00109033]
[1749936195437,1.1728881,105230.0,105220.0,0.00109033]
[1749936195638,1.15516126,105230.0,105220.0,0.00109033]
[1749936196446,1.17288846,105230.0,105220.0,0.00109033]
[1749936196642,1.49516126,105230.0,105220.0,0.00109033]
[1749936196848,1.51288846,105230.0,105220.0,0.00109033]
[1749936197055,1.49516126,105230.0,105220.0,0.00109033]
[1749936197257,1.00464723,105230.0,105220.0,0.00109033]
[1749936197489,1.41785545,105230.0,105220.0,0.00109033]
[1749936198029,1.43558326,105230.0,105220.0,0.00109033]
[1749936198256,1.41785545,105230.0,105220.0,0.00109033]
[1749936198459,1.43558321,105230.0,105220.0,0.00109033]
[1749936198878,1.43558325,105230.0,105220.0,0.00109033]
[1749936199056,1.53173246,105230.0,105220.0,0.00109033]
[1749936199273,1.51400467,105230.0,105220.0,0.00109033]
[1749936199538,1.53173251,105230.0,105220.0,0.00109033]
[1749936199761,1.51400467,105230.0,105220.0,0.00109033]
[1749936201576,1.51400467,105230.0,105190.0,0.07561794]
[1749936201800,1.51400467,105230.0,105180.0,0.38603496]
[1749936201801,0.02851809,105190.0,105180.0,0.38603496]
[1749936202027,0.53675992,105190.0,105180.0,0.38651048]
[1749936202241,0.21865086,105190.0,105180.0,0.36749638]
[1749936202443,0.07065522,105190.0,105180.0,0.38651048]
[1749936202646,0.07065522,105190.0,105180.0,0.22855048]
[1749936202850,0.07065522,105190.0,105180.0,0.38655048]
[1749936203060,0.06114871,105190.0,105180.0,0.39605735]
[1749936203277,0.08016182,105190.0,105180.0,0.38647057]
[1749936203486,0.25128166,105190.0,105180.0,0.21453638]
[1749936203696,0.25128166,105190.0,105180.0,0.40030578]
[1749936203697,0.05164292,105190.0,105180.0,0.40030578]
[1749936203913,0.05164292,105190.0,105180.0,0.01431073]
[1749936203914,1.45309405,105190.0,105180.0,0.01431073]
[1749936204133,0.01901926,105150.0,105140.0,0.32256348]
[1749936204368,0.20922445,105150.0,105140.0,0.07566547]
[1749936204576,0.71746628,105150.0,105140.0,0.16685305]
[1749936204785,0.71746628,105150.0,105140.0,0.00955865]
[1749936204998,0.69844629,105150.0,105140.0,4.753e-05]
[1749936205221,0.72703829,105150.0,105140.0,0.16721503]
[1749936205470,0.72703829,105150.0,105140.0,0.16721482]
[1749936205773,0.72703829,105150.0,105140.0,0.15836753]
[1749936206020,0.72903829,105150.0,105140.0,0.15836753]
[1749936206233,0.72903829,105150.0,105140.0,0.15832753]
[1749936206502,0.72903829,105150.0,105140.0,0.15823972]
[1749936206716,0.002,105150.0,105140.0,0.47123048]
[1749936206936,0.002,105150.0,105140.0,0.46885278]
[1749936207151,0.002,105150.0,105140.0,0.92049454]
[1749936207388,0.002,105150.0,105140.0,1.01664376]
[1749936207590,0.002,105150.0,105140.0,0.85836376]
[1749936207797,0.004,105150.0,105140.0,1.05696376]
[1749936208009,0.01901547,105170.0,105160.0,0.21871323]
[1749936208222,0.02852343,105170.0,105160.0,0.37707323]
[1749936208634,0.03803166,105170.0,105160.0,0.37707323]
[1749936208835,0.02852343,105170.0,105160.0,0.43570138]
[1749936209242,0.01901547,105170.0,105160.0,0.43570138]
[1749936209905,0.04603166,105170.0,105160.0,0.43570138]
[1749936210090,0.04603166,105170.0,105160.0,0.37707323]
[1749936210288,0.2266928,105170.0,105160.0,0.3580156]
[1749936210939,0.2266928,105170.0,105160.0,0.37703377]
[1749936211101,0.21718484,105170.0,105160.0,0.37703377]
[1749936211318,0.21718484,105170.0,105160.0,0.21871377]
[1749936211521,0.20767661,105170.0,105160.0,0.3579356]
[1749936212334,0.20767661,105170.0,105160.0,0.15824]
[1749936212547,0.19816829,105170.0,105150.0,0.22822789]
[1749936212743,0.19816829,105170.0,105160.0,0.35789569]
[1749936213022,0.19816829,105170.0,105160.0,0.1582]
[1749936213269,0.00950968,105150.0,105140.0,0.88134206]
[1749936213465,0.0095094,105150.0,105140.0,1.04312295]
[1749936213874,0.02852866,105150.0,105140.0,0.32168539]
[1749936214076,0.02852866,105150.0,105140.0,0.40936399]
[1749936214288,0.03803852,105150.0,105140.0,0.40936399]
[1749936214491,0.04003852,105150.0,105140.0,0.41891448]
[1749936214870,0.03052866,105150.0,105140.0,0.41891448]
[1749936215047,0.03052866,105150.0,105140.0,0.41991448]
[1749936215262,0.0400387,105150.0,105140.0,0.41991448]
[1749936215454,0.03052866,105150.0,105140.0,0.41991448]
[1749936215856,0.0400387,105150.0,105140.0,0.41991448]
[1749936216063,0.04003861,105150.0,105140.0,0.41991448]
[1749936216653,0.04954865,105150.0,105140.0,0.41991448]
[1749936217427,0.04003861,105150.0,105140.0,0.41991448]
[1749936217635,0.04003861,105150.0,105140.0,0.21975448]
[1749936217852,0.04003861,105150.0,105140.0,0.37787448]
[1749936218340,0.04954865,105150.0,105140.0,0.37787448]
[1749936218946,0.04954865,105150.0,105140.0,0.3861701]
[1749936218947,0.04003925,105150.0,105140.0,0.3861701]
[1749936219168,0.04003925,105150.0,105140.0,0.40515184]
[1749936219359,0.04003925,105150.0,105140.0,0.38734578]
[1749936219503,0.04954938,105150.0,105140.0,0.40515321]
[1749936220151,0.04954938,105150.0,105140.0,0.38734578]
[1749936220375,0.23975457,105150.0,105140.0,0.38734596]
[1749936220590,0.23975457,105150.0,105140.0,0.40515341]
[1749936220797,0.23975457,105150.0,105140.0,0.38734596]
[1749936221417,0.2302448,105150.0,105140.0,0.38734596]
[1749936221643,0.2302448,105150.0,105140.0,0.42779142]
[1749936221844,0.2302448,105150.0,105140.0,0.42779356]
[1749936222048,0.2302448,105150.0,105140.0,0.40998279]
[1749936222251,0.2302448,105150.0,105140.0,0.43730466]
[1749936222450,0.2302448,105150.0,105140.0,0.40998279]
[1749936222704,0.2302448,105150.0,105140.0,0.4277947]
[1749936222914,0.22073485,105150.0,105140.0,0.40998279]
[1749936223116,0.22073485,105150.0,105140.0,0.43730623]
[1749936223332,0.03053039,105150.0,105140.0,0.4373056]
[1749936223553,0.02102017,105150.0,105140.0,0.4373056]
[1749936223761,0.02102017,105150.0,105140.0,0.43730565]
[1749936223972,0.02102017,105150.0,105140.0,0.43730563]
[1749936224176,0.02102017,105150.0,105140.0,0.41949274]
[1749936224551,0.02102017,105150.0,105140.0,0.43730563]
[1749936224835,0.02102017,105150.0,105140.0,0.43730565]
[1749936225008,0.03052921,105150.0,105140.0,0.43706565]
[1749936225208,0.02101908,105150.0,105140.0,0.50678698]
[1749936225369,0.02101908,105150.0,105140.0,0.43706563]
[1749936225569,0.03052885,105150.0,105140.0,0.41925274]
[1749936225861,0.02101908,105150.0,105140.0,0.43706556]
[1749936226358,0.0400388,105150.0,105140.0,0.43706556]
[1749936226568,0.0400388,105150.0,105140.0,0.41925274]
[1749936226569,0.03052885,105150.0,105140.0,0.41925274]
[1749936226750,0.03052885,105150.0,105140.0,0.43706209]
[1749936226751,0.02101908,105150.0,105140.0,0.43706209]
[1749936226977,0.03052894,105150.0,105140.0,0.43706204]
[1749936227206,0.0115094,105150.0,105140.0,0.43706204]
[1749936227420,0.03052866,105150.0,105140.0,0.43706167]
[1749936227651,0.03052866,105150.0,105140.0,0.41925274]
[1749936227866,0.03052866,105150.0,105140.0,0.43706075]
[1749936228081,0.03052866,105150.0,105140.0,0.27922046]
[1749936228339,0.03052857,105150.0,105140.0,0.41909274]
[1749936228550,0.03052857,105150.0,105140.0,0.43682391]
[1749936228760,0.03052857,105150.0,105140.0,0.43682392]
[1749936229189,0.03052857,105150.0,105140.0,0.43678393]
[1749936229397,0.04003852,105150.0,105140.0,0.43678396]
[1749936229606,0.04003843,105150.0,105140.0,0.41905274]
[1749936230244,0.04954847,105150.0,105140.0,0.43678437]
[1749936230449,0.04954838,105150.0,105140.0,0.43678446]
[1749936230675,0.23975284,105150.0,105140.0,0.04136933]
[1749936230885,0.21122445,105150.0,105140.0,0.18123683]
[1749936231111,0.21122445,105150.0,105140.0,0.04137075]
[1749936231317,0.30096422,105150.0,105140.0,0.02363683]
[1749936231536,0.30096422,105150.0,105140.0,0.18115683]
[1749936231747,0.21122445,105150.0,105140.0,0.18115683]
[1749936231976,0.21122445,105150.0,105140.0,0.19889512]
[1749936232188,0.21122445,105150.0,105140.0,0.02363683]